{"text_format":"1","workbook":"xlsx","n_sheets":8,"sheets":["proizvajalec","razred_podrazred","prodaja_na_daljavo","up_taksa","izjava","razredi","drugi_sifranti","prevent_share"],"not_rendered":{"charts":0,"images":1,"macros":1,"external_links":1,"defined_names":36,"comments":0,"pivot_tables":0},"unopened":[],"bounds":{"document_bytes":16777216,"sheet_cells":100000,"rows_first":2000,"rows_last":500,"rows_between":2000,"halvings":0,"cell_chars":16384,"cell_head_chars":4096},"cells_cut":0,"cells_raw":0,"read":"whole","date_system":"1900"}

{"sheet":"proizvajalec","index":0,"n_rows":40,"n_cols":16,"rows_kept":40,"cut":false,"hidden":false,"merged":[[34,2,34,3],[34,4,34,13],[9,1,9,13],[10,1,10,13],[11,1,11,13],[12,1,12,13],[13,1,13,3],[13,4,13,13],[14,1,14,3],[14,4,14,13],[15,2,15,3],[15,4,15,13],[16,2,16,3],[16,4,16,13],[17,2,17,3],[17,4,17,13],[24,4,24,13],[25,2,25,3],[25,4,25,13],[18,10,18,13],[19,4,19,13],[20,1,20,3],[20,4,20,13],[21,1,21,3],[21,4,21,13],[0,1,8,13],[32,1,32,3],[32,4,32,13],[33,2,33,3],[33,4,33,13],[26,2,26,3],[26,4,26,13],[30,4,30,13],[31,10,31,13],[27,2,27,3],[27,4,27,13],[28,4,28,13],[29,4,29,13],[22,1,22,3],[22,4,22,13],[23,4,23,13]]}
[]
[]
[]
[]
[]
[]
[]
[]
[]
[null,"VLOGA ZA VPIS / SPREMEMBO VPISA V EVIDENCO PROIZVAJALCEV ELEKTRIČNE IN ELEKTRONSKE OPREME"]
[null,"na podlagi 44. člena Uredbe o odpadni električni in elektronski opremi (Uradni list RS, št. 55/15, 47/16, 72/18, 84/18 - ZIURKOE, 108/20 in 44/22 - ZVO-2)"]
[null,"1. Podatki o proizvajalcu električne in elektronske opreme (v nadaljevanju: stranka)"]
[null,"Opomba:  (1) - uradno ime  pravne osebe ali samostojnega podjetnika posameznika se navede kot je navedeno v poslovnem registru"]
[null,"NAZIV oz. IME PROIZVAJALCA: (1)"]
[null,"Pravni (uradni) naslov proizvajalca:"]
[null,null,"ulica:"]
[null,null,"hišna številka:"]
[null,null,"kraj oz. pošta:"]
[null,null,"poštna številka:",null," "," "," "," "]
[null,"Spletni naslov (če obstaja):"]
[null,"Matična številka:"]
[null,"Davčna številka:"]
[null,"Kontaktna oseba proizvajalca:"]
[null,null,"ime:"]
[null,null,"priimek:"]
[null,null,"službena telefonska številka:"]
[null,null,"službeni elektronski naslov:"]
[null,null,"službeni naslov kontaktne osebe:"]
[null,null,null,"ulica:"]
[null,null,null,"hišna številka:"]
[null,null,null,"kraj oz. pošta:"]
[null,null,null,"poštna številka:"," "," "," "," "]
[null,"OBVEZNOST PROIZVAJALCA - odgovornost proizvajalca"]
[null,null,"vrsta načrta ravnanja z OEEO (individualni ali skupni):"]
[null,null,"naziv nosilca skupnega načrta, če je bil izbran skupni načrt:",null,null,null,null,null,null,null,null,null,null,null,null,{"$f":"IF(ISNA(VLOOKUP(E35,Sifrant_shem,2,FALSE)),\"\",VLOOKUP(E35,Sifrant_shem,2,FALSE))","v":""}]
[]
[]
[]
[null,null,null,null,null,null,null,null,null,null,null,null," ","35461-"]
[null,"2023-07-05"]

{"sheet":"razred_podrazred","index":1,"n_rows":13,"n_cols":5,"rows_kept":13,"cut":false,"hidden":false,"merged":[[2,1,2,4],[1,1,1,2]]}
[]
[null,"2. Podatki razredov in podrazredov EEO - izpolni proizvajalec EEO"]
[]
[null,"Razred/podrazred EEO","Vrsta EEO (izberi iz seznama)"]
[null,null,null,{"$f":"IF(ISNA(VLOOKUP(B5,Sifrant_razredi,2,FALSE)),\"\",VLOOKUP(B5,Sifrant_razredi,2,FALSE))","v":""},{"$f":"IF(ISNA(VLOOKUP(C5,sifrant_vrsta_EEO,2,FALSE)),\"\",VLOOKUP(C5,sifrant_vrsta_EEO,2,FALSE))","v":""}]
[null,null,null,"",""]
[null,null,null,"",""]
[null,null,null,"",""]
[null,null,null,"",""]
[null,null,null,"",""]
[]
[]
["Št. vrstic:"]

{"sheet":"prodaja_na_daljavo","index":2,"n_rows":33,"n_cols":6,"rows_kept":33,"cut":false,"hidden":false,"merged":[[1,1,1,3],[2,1,2,3]]}
[]
[null,"3. Podatki o prodaji na daljavo, če proizvajalec prodaja EEO na daljavo neposredno končnim uporabnikom v druge države članice EU"]
[]
[null,"Razred/podrazred EEO","Država članica EU, kamor proizvajalec prodaja EEO","Pooblaščeni zastopnik v državi članici EU, kamor proizvajalec prodaja EEO (naziv in naslov)"]
[null,null,null,null,{"$f":"IF(ISNA(VLOOKUP(B5,Sifrant_razredi,2,FALSE)),\"\",VLOOKUP(B5,Sifrant_razredi,2,FALSE))","v":""},{"$f":"IF(ISNA(VLOOKUP(D5,sifrant_vrsta_EEO,2,FALSE)),\"\",VLOOKUP(D5,sifrant_vrsta_EEO,2,FALSE))","v":""}]
[null,null,null,null,"",""]
[null,null,null,null,"",""]
[null,null,null,null,"",""]
[null,null,null,null,"",""]
[null,null,null,null,"",""]
[null,null,null,null,"",""]
[null,null,null,null,"",""]
[null,null,null,null,"",""]
[null,null,null,null,"",""]
[null,null,null,null,"",""]
[null,null,null,null,"",""]
[null,null,null,null,"",""]
[null,null,null,null,"",""]
[null,null,null,null,"",""]
[null,null,null,null,"",""]
[null,null,null,null,"",""]
[null,null,null,null,"",""]
[null,null,null,null,"",""]
[null,null,null,null,"",""]
[null,null,null,null,"",""]
[null,null,null,null,"",""]
[null,null,null,null,"",""]
[null,null,null,null,"",""]
[null,null,null,null,{"$f":"IF(ISNA(VLOOKUP(B29,Sifrant_razredi,2,FALSE)),\"\",VLOOKUP(B29,Sifrant_razredi,2,FALSE))","v":""},{"$f":"IF(ISNA(VLOOKUP(D29,sifrant_vrsta_EEO,2,FALSE)),\"\",VLOOKUP(D29,sifrant_vrsta_EEO,2,FALSE))","v":""}]
[null,null,null,null,"",""]
[]
[]
["Št. vrstic:"]

{"sheet":"up_taksa","index":3,"n_rows":6,"n_cols":18,"rows_kept":6,"cut":false,"hidden":false,"merged":[[1,1,1,13],[3,1,3,13],[5,1,5,13]]}
[]
[null,"4. Upravna taksa",null,null,null,null,null,null,null,null,null,null,null,null,null,null,"V kolikor se upravna taksa plača na podračun Ministrstva za okolje, podnebje in energijo, se znesek upravne takse - državne (namen plačila) nakaže na račun št. 0110-0100-0315-637, referenca 11 25704-7111002-35461","."]
[null,null,null,null,null,null,null,null,null,null,null,null,null,null,null,null,{"$f":"MID(YEAR(TODAY()),2,4)","v":"023"},"."]
[null,"Za vlogo je potrebno v skladu s tar.št. 1 in št. 4 taksne tarife Zakona o upravnih taksah (Uradni list RS, št. 106/10-UPB, 14/15-ZUUJFO, 84/15-ZZelP-J, 32/16, 30/18-ZKZaš in 189/20-ZFRO) plačati upravno takso v višini 9,00 EUR. Upravno takso se plača v gotovini ali z drugim veljavnim plačilnim instrumentom in o plačilu predloži ustrezno potrdilo."]
[]
[null,{"$f":"Q2&Q3&\".\"","v":"V kolikor se upravna taksa plača na podračun Ministrstva za okolje, podnebje in energijo, se znesek upravne takse - državne (namen plačila) nakaže na račun št. 0110-0100-0315-637, referenca 11 25704-7111002-35461023."}]

{"sheet":"izjava","index":4,"n_rows":18,"n_cols":16,"rows_kept":18,"cut":false,"hidden":false,"merged":[[1,1,1,12],[10,9,10,12],[12,9,12,12],[17,2,17,5],[17,7,17,8],[7,1,7,4],[9,1,9,4],[3,1,3,12]]}
[]
[null,"5. Izjava proizvajalca o resničnosti in točnosti informacij, navedenih v tej vlogi",null,null,null,null,null,null,null,null,null,null,null,null,null,"V kolikor se upravna taksa plača na podračun Agencije RS za okolje, se znesek upravne takse - državne (namen plačila) nakaže na račun št. 0110-0100-0315-637, referenca 11 25518-7111002-35469"]
[null,null,null,null,null,null,null,null,null,null,null,null,null,null,null,{"$f":"MID(YEAR(TODAY()),2,4)","v":"023"}]
[null,"Kot zakoniti zastopnik proizvajaca EEO izjavljam, da so v vlogi navedene informacije resnične in točne ter točno opisujejo vrsto električne in elektronske opreme, dane na trg. Pravilnost podatkov jamčim s svojim podpisom vloge. "]
[]
[]
[]
[null,"vlogo pripravil-a:"]
[]
[]
[null,null,null,null,null,null,null,null,null,"ime in priimek ter podpis zakonitega zastopnika proizvajalca EEO"]
[]
[]
[]
[]
[]
[]
[null,"V/Na",null,null,null,null," , dne"]

{"sheet":"razredi","index":5,"n_rows":7,"n_cols":2,"rows_kept":7,"cut":false,"hidden":true,"merged":[]}
["Razred","ID razreda"]
["1 Oprema za topolotno izmenjavo",32]
["2 Zasloni, monitorji in oprema z zasloni, katerh površina je večja od 100 cm2",33]
["3 Sijalke",34]
["4 Velika oprema (katerakoli zunanja dimenzija večja od 50 cm)",35]
["5 Majhna oprema (nobena zunanja dimenzija ni večja od 50 cm)",36]
["6 Majhna oprema za IT in telekomunikacije (nobena zunanja dimenzija ni večja od 50 cm)",37]

{"sheet":"drugi_sifranti","index":6,"n_rows":40,"n_cols":2,"rows_kept":40,"cut":false,"hidden":true,"merged":[]}
["Vrsta EEO","Oznaka"]
["gospodinjska","g"]
["negospodinjska","ng"]
["gospodinjska in negospodinjska","g in ng"]
[]
["Države, članice EU"]
["Avstrija"]
["Belgija"]
["Bolgarija"]
["Ciper"]
["Češka"]
["Danska"]
["Estonija"]
["Finska"]
["Francija"]
["Grčija"]
["Hrvaška"]
["Irska"]
["Italija"]
["Latvija"]
["Litva"]
["Luksemburg"]
["Madžarska"]
["Malta"]
["Nemčija"]
["Nizozemska"]
["Poljska"]
["Portugalska"]
["Romunija"]
["Slovaška"]
["Slovenija"]
["Španija"]
["Švedska"]
[]
["Skupne sheme skladnosti","ID"]
["INTERSEROH zbiranje in predelava odpadnih surovin d.o.o., LETALIŠKA CESTA 3C, 1000 LJUBLJANA",33947]
["RECIKEL, družba za ravnanje z odpadno embalažo, d.o.o., VEVŠKA CESTA 52, 1260 LJUBLJANA - POLJE",67888]
["SLOPAK, družba za ravnanje z odpadno embalažo d.o.o., VODOVODNA CESTA 100, 1000 LJUBLJANA",33399]
["TRIGANA, razvojni inženiring, d.o.o., TRŽAŠKA CESTA 207, 1000 LJUBLJANA",71888]
["ZEOS, ravnanje z električno in elektronsko opremo, d.o.o., ŠLANDROVA ULICA 4, 1231 LJUBLJANA - ČRNUČE",43964]

{"sheet":"prevent_share","index":7,"n_rows":2,"n_cols":3,"rows_kept":2,"cut":false,"hidden":true,"merged":[]}
["a","b","c"]
[1,2,3]